bitfinex/quotes_SOLUSD_20240814
["timestamp","ask_amount","ask_price","bid_price","bid_amount"]
[1723645386530,55.88,147.14,147.05,20.0]
[1723645386731,55.88,147.14,147.06,45.0]
[1723645387561,75.88,147.14,147.06,45.0]
[1723645388052,55.88,147.14,147.06,45.0]
[1723645388254,0.8426791,147.16,147.08,6.1601]
[1723645388458,55.88,147.14,147.08,6.1601]
[1723645388623,0.8426791,147.16,147.08,6.1601]
[1723645388845,0.8426791,147.16,147.09,45.0]
[1723645389656,0.8426791,147.16,147.1,20.0]
[1723645389840,0.8426791,147.16,147.11,45.0]
[1723645390039,0.8426791,147.16,147.1,20.0]
[1723645390340,0.8426791,147.16,147.11,45.0]
[1723645390855,20.0,147.28,147.13,55.88]
[1723645391048,20.0,147.28,147.14,65.0]
[1723645391258,55.88,147.29,147.14,65.0]
[1723645391259,75.88,147.26,147.14,65.0]
[1723645391469,55.88,147.26,147.14,65.0]
[1723645392053,20.0,147.3,147.17,6.5977]
[1723645392371,20.0,147.27,147.18,65.0]
[1723645392539,55.88,147.26,147.18,65.0]
[1723645393163,55.88,147.2,147.1,6.4263]
[1723645393966,20.0,147.23,147.1,6.4263]
[1723645393967,55.88,147.23,147.1,6.4263]
[1723645394144,20.0,147.27,147.1,6.4263]
[1723645394358,33.83088399,147.41,147.06,2.65277858]
[1723645394359,20.8426791,147.31,147.16,55.88]
[1723645394659,20.8426791,147.31,147.17,20.0]
[1723645394858,20.8426791,147.31,147.18,60.2872]
[1723645395034,55.88,147.29,147.18,60.2872]
[1723645395360,0.8426791,147.31,147.19,20.0]
[1723645395560,0.8426791,147.31,147.21,6.0011]
[1723645395738,0.8426791,147.31,147.22,65.0]
[1723645397565,20.8426791,147.31,147.22,20.0]
[1723645397768,55.88,147.29,147.21,6.0011]
[1723645397940,0.8426791,147.31,147.21,6.0011]
[1723645398136,0.8426791,147.31,147.22,20.0]
[1723645398971,20.8426791,147.31,147.23,45.0]
[1723645399286,0.8426791,147.31,147.24,20.0]
[1723645399771,0.8426791,147.31,147.21,6.0011]
[1723645399973,0.8426791,147.31,147.22,20.0]
[1723645400459,75.88,147.3,147.22,20.0]
[1723645400667,75.88,147.3,147.21,6.0011]
[1723645401933,75.88,147.3,147.18,15.2872]
[1723645401934,20.0,147.25,147.18,15.2872]
[1723645402367,55.88,147.24,147.18,15.2872]
[1723645403045,55.88,147.28,147.18,15.2872]
[1723645403237,20.0,147.27,147.19,45.0]
[1723645403440,20.0,147.29,147.19,45.0]
[1723645404441,55.88,147.25,147.18,15.2872]
[1723645404648,20.0,147.24,147.16,6.5292]
[1723645405561,75.88,147.22,147.11,21.5256]
[1723645405798,20.0,147.21,147.11,21.5256]
[1723645406369,55.88,147.25,147.11,21.5256]
[1723645406542,40.0,147.24,147.11,21.5256]
[1723645406873,40.0,147.24,147.12,45.0]
[1723645407054,40.0,147.24,147.13,20.0]
[1723645407381,55.88,147.22,147.14,45.0]
[1723645408656,55.88,147.25,147.14,45.0]
[1723645408855,55.88,147.28,147.15,20.0]
[1723645409066,55.88,147.28,147.16,45.0]
[1723645409241,55.88,147.28,147.17,20.0]
[1723645409630,55.88,147.23,147.0,55.88]
[1723645409883,55.88,147.23,147.12,20.0]
[1723645411074,20.0,147.22,147.12,20.0]
[1723645411565,75.88,147.2,147.04,55.88]
[1723645411750,20.0,147.19,147.04,55.88]
[1723645413088,55.88,147.17,147.06,6.1612]
[1723645413383,20.0,147.16,147.06,6.1612]
[1723645413965,20.0,147.19,147.06,6.1612]
[1723645414680,20.0,147.2,147.06,6.1612]
[1723645415056,20.0,147.2,147.07,45.0]
[1723645415280,20.0,147.2,147.08,20.0]
[1723645415557,20.0,147.2,147.09,45.0]
[1723645415762,20.0,147.19,147.1,20.0]
[1723645415978,55.88,147.18,147.09,45.0]
[1723645416155,75.88,147.21,147.09,45.0]
[1723645416156,20.0,147.17,147.09,45.0]
[1723645416568,55.88,147.21,147.09,45.0]
[1723645416769,55.88,147.21,147.1,20.0]
[1723645417082,55.88,147.21,147.11,45.0]
[1723645417293,55.88,147.24,147.12,20.0]
[1723645417471,20.0,147.23,147.13,45.0]
[1723645418479,55.88,147.24,147.06,6.1612]
[1723645418480,55.88,147.18,147.06,6.1612]
[1723645418656,55.88,147.21,147.07,65.0]
[1723645418857,75.88,147.21,147.07,65.0]
[1723645419057,55.88,147.18,147.06,6.1612]
[1723645419852,75.88,147.21,147.06,6.1612]
[1723645420057,20.0,147.2,147.06,6.1612]
[1723645420257,20.0,147.2,147.07,20.0]
[1723645420678,20.0,147.2,147.08,75.0]
[1723645420873,20.0,147.2,147.09,20.0]
[1723645421087,20.0,147.2,147.1,45.0]
[1723645421653,55.88,147.21,147.11,20.0]
[1723645421859,55.88,147.24,147.12,45.0]
[1723645422059,55.88,147.21,147.12,45.0]
[1723645422655,20.0,147.2,147.11,20.0]
[1723645422957,55.88,147.18,147.08,30.0]
[1723645423165,20.0,147.2,147.08,30.0]
[1723645423573,55.88,147.18,147.08,30.0]
[1723645424282,20.0,147.17,147.08,30.0]
[1723645424664,20.0,147.17,147.06,6.1612]
[1723645424888,20.0,147.17,147.07,20.0]
[1723645425598,55.88,147.15,147.06,6.1612]
[1723645426089,20.0,147.14,147.06,6.1612]
[1723645426472,55.88,147.12,147.06,6.1612]
[1723645426801,20.0,147.14,147.06,6.1612]
[1723645426966,20.0,147.25,147.06,6.1612]
[1723645427164,55.88,147.24,147.09,55.88]
[1723645427392,20.0,147.27,147.1,30.0]
[1723645427587,20.0,147.27,147.11,20.0]
[1723645427786,20.0,147.27,147.12,45.0]
[1723645427968,20.0,147.26,147.13,20.0]
[1723645428166,20.0,147.25,147.14,45.0]
[1723645428386,55.88,147.23,147.14,45.0]
[1723645428699,55.88,147.26,147.14,45.0]
[1723645429073,55.88,147.26,147.15,26.3994]
[1723645429282,55.88,147.29,147.16,45.0]
[1723645429910,55.88,147.26,147.17,20.0]
[1723645430190,55.88,147.26,147.18,45.0]
[1723645430372,55.88,147.29,147.18,45.0]
[1723645431164,40.0,147.28,147.18,45.0]
[1723645431387,60.0,147.28,147.18,45.0]
[1723645431597,55.88,147.26,147.17,20.0]
[1723645431786,20.0,147.25,147.15,6.3994]
[1723645431966,20.0,147.25,147.16,65.0]
[1723645433117,55.88,147.26,147.16,65.0]
[1723645433118,55.88,147.29,147.16,65.0]
[1723645433395,0.8426791,147.31,147.17,15.731]
[1723645433703,0.8426791,147.31,147.18,65.0]
[1723645434396,20.0,147.3,147.18,65.0]
[1723645434607,20.0,147.29,147.18,65.0]
[1723645434896,0.8426791,147.31,147.18,65.0]
[1723645435100,0.8426791,147.31,147.2,55.88]
[1723645435272,0.8426791,147.31,147.21,65.0]
[1723645435901,0.8426791,147.31,147.23,55.88]
[1723645436201,0.8426791,147.31,147.24,20.0]
[1723645436403,0.8426791,147.31,147.24,65.0]
[1723645436703,20.8426791,147.31,147.22,6.1401]
[1723645437265,120.88,147.3,147.22,6.1401]
[1723645437792,20.0,147.27,147.22,6.1401]
[1723645437999,20.0,147.26,147.17,22.3143]
[1723645438300,20.0,147.29,147.17,22.3143]
[1723645438686,20.0,147.27,147.17,22.3143]
[1723645438883,20.0,147.26,147.17,22.3143]
[1723645439085,55.88,147.24,147.17,6.5833]
[1723645439410,40.0,147.23,147.17,6.5833]
[1723645440119,20.0,147.23,147.17,6.5833]
[1723645440786,20.0,147.24,147.17,6.5833]
[1723645441096,20.0,147.23,147.17,6.5833]
[1723645442120,20.0,147.21,147.12,6.0559]
[1723645442433,20.0,147.2,147.12,6.0559]
[1723645442902,20.0,147.25,147.12,6.0559]
[1723645443222,20.0,147.24,147.13,30.0]
[1723645443417,20.0,147.24,147.14,20.0]
[1723645443630,40.0,147.29,147.15,45.0]
[1723645443831,20.0,147.29,147.16,75.88]
[1723645444140,20.0,147.27,147.16,20.0]
[1723645444294,20.0,147.27,147.17,45.0]
[1723645444493,20.0,147.29,147.17,45.0]
[1723645445099,20.0,147.28,147.17,45.0]
[1723645445301,20.0,147.27,147.17,45.0]
[1723645445516,20.0,147.26,147.17,45.0]
[1723645445720,20.0,147.25,147.16,20.0]
[1723645445899,20.0,147.25,147.14,55.88]
[1723645445900,20.0,147.24,147.15,20.0]
[1723645446308,20.0,147.24,147.14,20.0]
[1723645446497,20.0,147.26,147.14,20.0]
[1723645446827,20.0,147.27,147.16,55.88]
[1723645447125,20.0,147.29,147.17,20.0]
[1723645447421,0.8426791,147.31,147.18,45.0]
[1723645447594,0.8426791,147.31,147.19,20.0]
[1723645447800,0.8426791,147.31,147.2,45.0]
[1723645448025,40.0,147.3,147.21,6.5577]
[1723645448523,20.8426791,147.31,147.21,6.5577]
[1723645448707,20.0,147.3,147.21,6.5577]
[1723645448907,20.0,147.3,147.22,45.0]
[1723645449242,20.8426791,147.31,147.22,61.5756]
[1723645449526,0.8426791,147.31,147.22,16.5756]
[1723645449819,20.0,147.3,147.22,16.5756]
[1723645450198,278.9,147.39,147.27,6.4632]
[1723645450408,381.7,147.48,147.28,65.0]
[1723645450409,20.0,147.41,147.28,65.0]
[1723645450640,22.73242231,147.43,147.28,65.0]
[1723645450797,20.0,147.41,147.28,65.0]
[1723645450996,22.73242231,147.43,147.29,57.2372233]
[1723645451220,20.0,147.45,147.33,6.1439]
[1723645451396,401.7,147.48,147.34,66.35683866]
[1723645451600,404.41836263,147.48,147.34,66.35683866]
[1723645451927,20.0,147.45,147.34,65.0]
[1723645452230,20.8426791,147.46,147.35,15.3068]
[1723645452413,20.8426791,147.46,147.35,60.3068]
[1723645452611,20.0,147.43,147.35,15.3068]
[1723645452821,20.0,147.41,147.33,6.1439]
[1723645453123,20.0,147.39,147.33,6.1439]
[1723645453337,55.88,147.38,147.3,15.3068]
[1723645453831,20.0,147.37,147.3,15.3068]
[1723645454127,20.0,147.4,147.3,15.3068]
[1723645454295,20.0,147.41,147.3,15.3068]
[1723645454493,55.88,147.42,147.3,15.3068]
[1723645454726,0.8426791,147.46,147.33,55.88]
[1723645454964,0.8426791,147.46,147.34,65.0]
[1723645456129,0.8426791,147.46,147.35,22.1665]
[1723645456443,0.8426791,147.46,147.36,65.0]
[1723645457546,0.8426791,147.46,147.36,120.88]
[1723645457759,0.8426791,147.46,147.36,65.0]
[1723645458433,0.8426791,147.46,147.36,120.88]
[1723645458651,20.0,147.49,147.36,120.88]
[1723645458833,20.0,147.51,147.36,120.88]
[1723645459156,55.88,147.52,147.36,120.88]
[1723645459371,55.88,147.49,147.36,65.0]
[1723645459866,55.88,147.49,147.36,20.0]
[1723645460551,75.88,147.52,147.36,75.88]
[1723645460755,65.0,147.51,147.36,75.88]
[1723645461131,55.88,147.49,147.36,20.0]
[1723645461454,55.88,147.46,147.35,22.1665]
[1723645461755,20.0,147.45,147.35,22.1665]
[1723645462349,20.0,147.51,147.36,55.88]
[1723645462557,75.88,147.55,147.4,6.5136]
[1723645462757,75.88,147.55,147.41,1.03701846]
[1723645462963,20.0,147.57,147.41,1.03701846]
[1723645463243,55.88,147.58,147.44,15.3208]
[1723645463461,55.88,147.58,147.46,6.5136]
[1723645463646,55.88,147.58,147.47,46.03709401]
[1723645463844,55.88,147.58,147.47,65.0]
[1723645464242,0.8426791,147.61,147.47,65.0]
[1723645464243,20.8426791,147.61,147.47,65.0]
[1723645464446,96.7226791,147.61,147.47,65.0]
[1723645464742,55.88,147.58,147.47,65.0]
[1723645465758,56.7226791,147.61,147.47,65.0]
[1723645466566,0.8426791,147.61,147.49,55.88]
[1723645466767,0.8426791,147.61,147.5,65.0]
[1723645466768,56.7226791,147.61,147.5,65.0]
[1723645467477,76.7226791,147.61,147.5,20.0]
[1723645467644,20.0,147.6,147.47,20.0]
[1723645468070,0.8426791,147.61,147.47,20.0]
[1723645468383,0.8426791,147.61,147.48,55.88]
[1723645468542,0.8426791,147.61,147.49,20.0]
[1723645468851,0.8426791,147.61,147.5,45.0]
[1723645469047,0.8426791,147.61,147.51,20.0]
[1723645469248,0.8426791,147.61,147.52,45.0]
[1723645469449,0.8426791,147.61,147.54,21.311]
[1723645469680,0.8426791,147.61,147.55,45.0]
[1723645470490,0.8426791,147.61,147.56,20.0]
[1723645470673,0.8426791,147.61,147.57,45.0]
[1723645472186,0.8426791,147.61,147.58,20.0]
[1723645472394,0.8426791,147.61,147.59,45.0]
[1723645473072,0.8426791,147.61,147.54,21.311]
[1723645473591,56.7226791,147.61,147.54,21.311]
[1723645473979,0.8426791,147.61,147.54,21.311]
[1723645474569,56.7226791,147.61,147.54,21.311]
[1723645474796,20.0,147.6,147.54,6.2709]
[1723645474974,55.88,147.58,147.49,21.1098]
[1723645475179,40.0,147.57,147.49,21.1098]
[1723645475484,55.88,147.55,147.49,21.1098]
[1723645476495,20.0,147.57,147.49,21.1098]
[1723645476679,40.0,147.57,147.49,21.1098]
[1723645476877,40.0,147.57,147.49,6.0402]
[1723645477092,55.88,147.55,147.49,6.0402]
[1723645477399,20.0,147.54,147.49,6.0402]
[1723645477797,20.0,147.54,147.44,6.076]
[1723645478094,75.88,147.55,147.44,6.076]
[1723645478594,20.0,147.53,147.44,6.076]
[1723645478777,55.88,147.52,147.44,6.076]
[1723645479399,75.88,147.52,147.44,6.076]
[1723645479687,65.0,147.51,147.44,6.076]
[1723645480669,55.88,147.46,147.39,6.0113]
[1723645480990,20.0,147.44,147.35,6.0113]
[1723645481193,55.88,147.43,147.35,6.0113]
[1723645481391,75.88,147.46,147.35,6.0113]
[1723645481594,20.0,147.45,147.35,6.0113]
[1723645482467,75.88,147.43,147.35,6.0113]
[1723645482696,20.0,147.42,147.35,6.0113]
[1723645482896,20.0,147.41,147.35,6.0113]
[1723645483198,75.88,147.41,147.35,6.0113]
[1723645483799,55.88,147.38,147.3,6.3147]
[1723645483984,55.88,147.35,147.3,6.3147]
[1723645484577,65.0,147.4,147.3,6.3147]
[1723645484794,20.0,147.4,147.31,1.3558359]
[1723645485312,20.0,147.4,147.3,6.3147]
[1723645485477,55.88,147.41,147.31,20.0]
[1723645485906,2.12800454,147.42,147.32,45.0]
[1723645486113,40.0,147.43,147.32,45.0]
[1723645486605,20.0,147.43,147.32,45.0]
[1723645487007,55.88,147.44,147.32,45.0]
[1723645487287,20.0,147.43,147.32,45.0]
[1723645487600,334.78,147.47,147.33,85.88]
[1723645487784,334.78,147.47,147.34,65.0]
[1723645488208,55.88,147.44,147.34,65.0]
[1723645488709,20.0,147.43,147.34,20.0]
[1723645489076,75.88,147.41,147.3,6.3147]
[1723645489416,75.88,147.41,147.31,20.0]
[1723645489638,55.88,147.41,147.31,20.0]
[1723645490409,55.88,147.41,147.32,45.0]
[1723645490708,75.88,147.38,147.3,6.3147]
[1723645490912,55.88,147.35,147.3,6.3147]
[1723645491679,55.88,147.39,147.3,6.3147]
[1723645492193,55.88,147.42,147.31,20.0]
[1723645492513,20.0,147.4,147.31,20.0]
[1723645492701,20.0,147.38,147.3,6.3147]
[1723645492907,40.0,147.38,147.3,6.3147]
[1723645493210,55.88,147.39,147.3,6.3147]
[1723645493895,20.0,147.38,147.3,6.3147]
[1723645494088,75.88,147.36,147.3,6.3147]
[1723645494487,75.88,147.36,147.27,15.2544]
[1723645494719,20.0,147.35,147.27,15.2544]
[1723645494893,20.0,147.34,147.27,15.2544]
[1723645495420,75.88,147.36,147.27,15.2544]
[1723645495598,20.0,147.34,147.26,6.3446]
[1723645495909,75.88,147.36,147.26,6.3446]
[1723645496088,20.0,147.35,147.26,6.3446]
[1723645496623,20.0,147.4,147.26,6.3446]
[1723645496787,75.88,147.39,147.27,65.0]
[1723645496984,55.88,147.39,147.27,65.0]
[1723645498324,78.55359552,147.42,147.27,65.0]
[1723645498491,75.88,147.42,147.27,120.88]
[1723645499315,55.88,147.42,147.27,120.88]
[1723645499618,55.88,147.42,147.28,15.9428]
[1723645499828,75.88,147.42,147.29,65.0]
[1723645500430,20.0,147.41,147.29,65.0]
[1723645500625,55.88,147.39,147.29,65.0]
[1723645500926,55.88,147.39,147.3,30.0]
[1723645501129,55.88,147.39,147.31,20.0]
[1723645501800,55.88,147.39,147.29,20.0]
[1723645502000,22.71996123,147.44,147.28,15.9428]
[1723645502001,20.0,147.35,147.28,15.9428]
[1723645502307,75.88,147.33,147.26,6.3446]
[1723645502516,55.88,147.33,147.26,6.3446]
[1723645502901,55.88,147.36,147.26,6.3446]
[1723645503108,20.0,147.33,147.26,6.3446]
[1723645503313,45.0,147.32,147.26,6.3446]
[1723645503513,20.0,147.29,147.22,15.0658]
[1723645503921,55.88,147.3,147.22,15.0658]
[1723645504107,20.0,147.29,147.22,15.0658]
[1723645504307,65.0,147.32,147.21,6.4181]
[1723645504308,95.88,147.27,147.21,6.4181]
[1723645504623,75.88,147.27,147.17,15.1274]
[1723645505832,20.0,147.25,147.17,15.1274]
[1723645506926,55.88,147.27,147.17,15.1274]
[1723645507345,20.0,147.28,147.17,15.1274]
[1723645507503,55.88,147.3,147.17,15.1274]
[1723645507698,20.0,147.29,147.17,15.1274]
[1723645508106,20.0,147.33,147.2,55.88]
[1723645508425,381.7,147.41,147.23,55.88]
[1723645508426,20.0,147.39,147.23,55.88]
[1723645508607,20.0,147.46,147.26,15.2196]
[1723645508935,20.0,147.41,147.27,120.88]
[1723645509233,20.0,147.39,147.28,20.0]
[1723645509619,20.0,147.39,147.29,45.0]
[1723645510213,20.0,147.41,147.29,45.0]
[1723645510617,84.9366,147.56,147.32,55.88]
[1723645510618,55.88,147.47,147.32,55.88]
[1723645510823,20.0,147.48,147.33,65.0]
[1723645511028,75.88,147.5,147.33,65.0]
[1723645511224,75.88,147.5,147.34,16.1093]
[1723645511431,55.88,147.53,147.35,122.23668415]
[1723645511605,55.88,147.53,147.38,55.88]
[1723645511811,20.0,147.5,147.39,65.0]
[1723645512019,20.0,147.48,147.39,65.0]
[1723645512334,75.88,147.5,147.39,65.0]
[1723645513232,20.0,147.48,147.39,65.0]
[1723645513416,20.0,147.53,147.36,6.5959]
[1723645513417,55.88,147.44,147.36,6.5959]
[1723645513815,75.88,147.41,147.36,6.5959]
[1723645514140,55.88,147.38,147.31,6.4916]
[1723645514531,20.0,147.37,147.31,6.4916]
[1723645515142,55.88,147.35,147.25,6.1875]
[1723645516017,20.0,147.37,147.25,6.1875]
[1723645516220,55.88,147.38,147.26,20.0]
[1723645516421,20.0,147.41,147.25,6.1875]
[1723645516740,20.0,147.39,147.25,6.1875]
[1723645517326,20.0,147.37,147.26,45.0]
[1723645517719,20.0,147.37,147.27,20.0]
[1723645517919,40.43,147.37,147.28,45.0]
[1723645518141,20.0,147.37,147.28,45.0]
[1723645518350,20.0,147.37,147.27,20.0]
[1723645518644,20.0,147.31,147.25,6.1875]
[1723645518945,20.0,147.33,147.25,6.1875]
[1723645519146,20.0,147.32,147.25,6.1875]
[1723645519451,20.0,147.29,147.25,6.1875]
[1723645520019,20.0,147.32,147.25,6.1875]
[1723645520224,20.0,147.35,147.25,6.1875]
[1723645520427,20.0,147.37,147.25,6.1875]
[1723645520624,20.0,147.34,147.26,20.0]
[1723645520842,55.88,147.31,147.25,6.1875]
[1723645521518,20.0,147.34,147.25,6.1875]
[1723645521744,20.0,147.33,147.25,6.1875]
[1723645521943,40.0,147.32,147.25,6.1875]
[1723645522323,20.0,147.32,147.25,6.1875]
[1723645522944,20.0,147.33,147.25,6.1875]
[1723645523158,75.88,147.35,147.25,6.1875]
[1723645523329,20.0,147.33,147.26,20.0]
[1723645524152,75.88,147.35,147.26,20.0]
[1723645524531,20.0,147.33,147.25,6.1875]
[1723645525027,45.0,147.34,147.25,6.1875]
[1723645525230,20.0,147.33,147.26,20.0]
[1723645525532,20.0,147.31,147.25,6.1875]
[1723645525727,20.0,147.33,147.25,6.1875]
[1723645525932,45.0,147.34,147.25,6.1875]
[1723645526149,26.6048,147.39,147.26,20.0]
[1723645526150,20.0,147.37,147.26,20.0]
[1723645526416,45.0,147.36,147.26,20.0]
[1723645526617,20.0,147.37,147.26,20.0]
[1723645526935,20.0,147.33,147.26,20.0]
[1723645527329,45.0,147.36,147.26,20.0]
[1723645527528,20.0,147.37,147.26,20.0]
[1723645527724,20.0,147.37,147.27,45.0]
[1723645527922,20.0,147.37,147.28,20.0]
[1723645528537,20.0,147.37,147.26,20.0]
[1723645529259,20.0,147.42,147.27,45.0]
[1723645529429,20.0,147.4,147.28,20.0]
[1723645529626,75.88,147.42,147.29,45.0]
[1723645529851,75.88,147.42,147.3,20.0]
[1723645530056,75.88,147.42,147.31,45.0]
[1723645530348,258.9,147.43,147.31,45.0]
[1723645530349,258.9,147.43,147.32,36.1104]
[1723645530555,20.0,147.43,147.32,36.1104]
[1723645530855,20.0,147.41,147.32,36.1104]
[1723645531039,20.0,147.4,147.32,36.1104]
[1723645531220,20.0,147.41,147.32,36.1104]
[1723645531427,75.88,147.39,147.32,16.1104]
[1723645532232,20.0,147.39,147.32,16.1104]
[1723645532623,45.0,147.38,147.32,16.1104]
[1723645533024,65.0,147.38,147.32,16.1104]
[1723645533227,65.0,147.38,147.26,16.03]
[1723645533422,20.0,147.37,147.27,65.0]
[1723645533949,45.0,147.38,147.27,65.0]
[1723645534127,45.0,147.39,147.27,65.0]
[1723645534328,75.88,147.42,147.27,65.0]
[1723645534540,65.0,147.41,147.27,65.0]
[1723645534749,20.0,147.4,147.27,65.0]
[1723645534931,45.0,147.39,147.27,65.0]
[1723645535249,55.88,147.42,147.27,120.88]
[1723645535421,20.0,147.42,147.3,55.88]
[1723645535624,20.0,147.44,147.31,66.35721104]
[1723645535943,55.88,147.5,147.34,6.6058]
[1723645536152,20.0,147.54,147.37,6.6058]
[1723645536470,20.0,147.53,147.39,55.88]
[1723645536642,314.78,147.56,147.4,20.0]
[1723645536643,40.0,147.51,147.4,20.0]
[1723645536827,20.0,147.49,147.4,20.0]
[1723645537041,20.0,147.5,147.4,20.0]
[1723645537247,20.0,147.5,147.39,20.0]
[1723645537446,20.0,147.49,147.39,20.0]
[1723645537633,20.0,147.46,147.38,15.5886]
[1723645537837,55.88,147.48,147.38,15.5886]
[1723645538059,20.0,147.45,147.38,15.5886]
[1723645538371,40.0,147.45,147.38,15.5886]
[1723645538539,75.88,147.45,147.38,15.5886]
[1723645538749,45.0,147.44,147.38,15.5886]
[1723645539243,75.88,147.45,147.38,15.5886]
[1723645539442,20.0,147.45,147.38,15.5886]
[1723645539861,20.0,147.42,147.37,6.6058]
[1723645540990,20.0,147.44,147.37,6.6058]
[1723645541166,55.88,147.45,147.37,6.6058]
[1723645541346,20.0,147.42,147.37,6.6058]
[1723645541544,45.0,147.41,147.37,6.6058]
[1723645541738,55.88,147.43,147.37,6.6058]
[1723645541940,20.0,147.44,147.37,6.6058]
[1723645542183,2.19937142,147.47,147.37,6.6058]
[1723645542467,20.0,147.5,147.38,20.0]
[1723645542670,75.88,147.5,147.38,20.0]
[1723645542956,75.88,147.5,147.39,45.0]
[1723645543163,75.88,147.5,147.4,20.0]
[1723645543548,20.0,147.54,147.4,20.0]
[1723645543746,78.01891564,147.54,147.42,16.2238]
[1723645543948,20.0,147.52,147.43,20.0]
[1723645544965,281.44090808,147.56,147.43,20.0]
[1723645544966,281.01090808,147.56,147.43,20.0]
[1723645545162,75.88,147.59,147.44,6.1944]
[1723645545373,20.0,147.57,147.45,65.0]
[1723645545976,20.0,147.53,147.45,20.0]
[1723645546152,20.0,147.55,147.45,20.0]
[1723645546348,20.0,147.57,147.45,20.0]
[1723645546548,20.0,147.57,147.46,45.0]
[1723645546854,55.88,147.56,147.47,20.0]
[1723645547161,20.0,147.57,147.45,20.0]
[1723645547364,278.9,147.62,147.46,102.23588202]
[1723645547677,20.0,147.57,147.47,20.0]
[1723645547882,55.88,147.52,147.44,6.1944]
[1723645548045,20.0,147.5,147.44,6.1944]
[1723645548584,20.0,147.48,147.44,6.1944]
[1723645548756,20.0,147.46,147.44,6.1944]
[1723645548955,20.0,147.46,147.36,22.5537]
[1723645549260,45.0,147.45,147.36,22.5537]
[1723645549464,20.0,147.53,147.37,55.88]
[1723645549647,20.0,147.53,147.37,85.88]
[1723645549862,20.0,147.53,147.38,6.1853]
[1723645550549,20.0,147.53,147.39,20.0]
[1723645550749,20.0,147.53,147.4,45.0]
[1723645550983,437.58,147.54,147.41,20.0]
[1723645550984,20.0,147.51,147.41,20.0]
[1723645551187,20.0,147.47,147.41,20.0]
[1723645551482,20.0,147.49,147.38,6.1853]
[1723645551780,55.88,147.5,147.38,6.1853]
[1723645551973,65.0,147.49,147.38,6.1853]
[1723645552174,20.0,147.51,147.38,6.1853]
[1723645552383,45.0,147.5,147.38,6.1853]
[1723645552579,20.0,147.48,147.38,6.1853]
[1723645552769,20.0,147.46,147.38,6.1853]